fUSD/lending_fUSD_20260624
["ID","MTS","AMOUNT","RATE_DAILY","PERIOD"]
[426322522,1782304250000,-150.0,0.00022986,4]
[426322501,1782304250000,-19506.0,0.000229,2]
[426322498,1782304250000,-7754.96855568,0.000229,2]
[426322499,1782304250000,-617.54067802,0.000229,2]
[426322516,1782304250000,-700.0,0.0002297,2]
[426322521,1782304250000,-150.0,0.00022986,4]
[426322535,1782304250000,-1304.86,0.00022999,2]
[426322517,1782304250000,-400.0,0.0002297,2]
[426322551,1782304250000,-947921.28475486,0.00023,30]
[426322547,1782304250000,-499.65870416,0.00022999,2]
[426322544,1782304250000,-500.0,0.00022999,2]
[426322548,1782304250000,-50000.0,0.00023,2]
[426322546,1782304250000,-500.0,0.00022999,2]
[426322540,1782304250000,-1304.86,0.00022999,2]
[426322543,1782304250000,-500.0,0.00022999,2]
[426322539,1782304250000,-1304.86,0.00022999,2]
[426322550,1782304250000,-10000.0,0.00023,2]
[426322541,1782304250000,-1304.89467143,0.00022999,2]
[426322542,1782304250000,-500.0,0.00022999,2]
[426322519,1782304250000,-150.0,0.00022986,4]
[426322545,1782304250000,-500.0,0.00022999,2]
[426322530,1782304250000,-26854.6106277,0.00022993,2]
[426322528,1782304250000,-1331.7576687,0.00022993,2]
[426322531,1782304250000,-1304.86,0.00022999,2]
[426322536,1782304250000,-1304.86,0.00022999,2]
[426322532,1782304250000,-1304.86,0.00022999,2]
[426322529,1782304250000,-53590.83034882,0.00022993,10]
[426322533,1782304250000,-1304.86,0.00022999,2]
[426322534,1782304250000,-1304.86,0.00022999,2]
[426322538,1782304250000,-1304.86,0.00022999,2]
[426322527,1782304250000,-500.0,0.00022992,2]
[426322525,1782304250000,-190.82820862,0.00022986,4]
[426322537,1782304250000,-1304.86,0.00022999,2]
[426322549,1782304250000,-3809.69075909,0.00023,15]
[426322554,1782304251000,-500.0,0.000217,5]
[426322555,1782304251000,-631.77746381,0.00023,30]
[426322553,1782304251000,-254.35801595,0.00023,30]
[426322552,1782304251000,-8848.45726836,0.00023,30]
[426322556,1782304252000,-3166.92512006,0.000143,2]
[426322557,1782304252000,-2738.51990694,0.000143,2]
[426322559,1782304377000,458.572344,0.0002254,120]
[426322560,1782304385000,240.113805,0.00022193,120]
[426322567,1782304882000,-163.29917814,0.00013027,7]
[426322568,1782304884000,973.72,0.00028767,120]
[426322569,1782305042000,317.91047133,0.00028767,120]
[426322606,1782305238000,-175.09,0.00010631,2]
[426322608,1782305291000,-166.66,0.0001262,2]
[426322610,1782305344000,-166.66,0.00012886,2]
[426322611,1782305397000,-164.38636182,0.00013027,7]
[426322812,1782305431000,-500.0,0.00013241,2]
[426322816,1782305431000,-500.0,0.00013241,2]
[426322820,1782305431000,-500.0,0.00013241,2]
[426322815,1782305431000,-500.0,0.00013241,2]
[426322808,1782305431000,-500.0,0.00013241,2]
[426322809,1782305431000,-500.0,0.00013241,2]
[426322804,1782305431000,-166.66,0.00013152,2]
[426322805,1782305431000,-500.0,0.00013241,2]
[426322806,1782305431000,-314.02160655,0.00013241,2]
[426322819,1782305431000,-500.0,0.00013241,2]
[426322807,1782305431000,-185.97839345,0.00013241,2]
[426322811,1782305431000,-500.0,0.00013241,2]
[426322810,1782305431000,-500.0,0.00013241,2]
[426322817,1782305431000,-500.0,0.00013241,2]
[426322834,1782305431000,-500.0,0.00013241,2]
[426322836,1782305431000,-500.0,0.00013241,2]
[426322832,1782305431000,-500.0,0.00013241,2]
[426322828,1782305431000,-500.0,0.00013241,2]
[426322830,1782305431000,-500.0,0.00013241,2]
[426322813,1782305431000,-500.0,0.00013241,2]
[426322826,1782305431000,-500.0,0.00013241,2]
[426322838,1782305431000,-500.0,0.00013241,2]
[426322818,1782305431000,-500.0,0.00013241,2]
[426322821,1782305431000,-500.0,0.00013241,2]
[426322814,1782305431000,-500.0,0.00013241,2]
[426322823,1782305431000,-500.0,0.00013241,2]
[426322825,1782305431000,-500.0,0.00013241,2]
[426322906,1782305432000,-203.93,0.00013699,2]
[426322912,1782305432000,-500.0,0.00013971,2]
[426322903,1782305432000,-293.66,0.00013699,2]
[426322899,1782305432000,-500.0,0.00013697,2]
[426322911,1782305432000,-166.66,0.00013949,2]
[426322905,1782305432000,-244.72,0.00013699,2]
[426322907,1782305432000,-169.94,0.00013699,2]
[426322908,1782305432000,-849.74,0.00013699,2]
[426322898,1782305432000,-166.66,0.00013683,2]
[426322913,1782305432000,-250.0,0.00014,2]
[426322902,1782305432000,-200.0,0.00013699,2]
[426322910,1782305432000,-2500.0,0.00013929,2]
[426322920,1782305432000,-5818.02365502,0.00014299,2]
[426322917,1782305432000,-2422.47,0.00014171,2]
[426322921,1782305432000,-319.0,0.000143,2]
[426322914,1782305432000,-522.8,0.00014022,2]
[426322916,1782305432000,-593.8,0.00014171,2]
[426322915,1782305432000,-276.43,0.00014058,2]
[426322922,1782305432000,-300.0,0.00014329,2]
[426322919,1782305432000,-500.0,0.00014245,2]
[426322918,1782305432000,-168.74,0.00014213,2]
[426322934,1782305432000,-600.0,0.00014467,2]
[426322926,1782305432000,-300.0,0.00014329,2]
[426322933,1782305432000,-600.0,0.00014467,2]
[426322928,1782305432000,-31570.1923,0.000144,2]
[426322909,1782305432000,-23502.9,0.00013699,2]
[426322923,1782305432000,-300.0,0.00014329,2]
[426322894,1782305432000,-2566.45,0.00013622,2]
[426322930,1782305432000,-600.0,0.00014467,2]
[426322892,1782305432000,-262331.6585,0.00013599,2]
[426322840,1782305432000,-500.0,0.00013241,2]
[426322842,1782305432000,-500.0,0.00013241,2]
[426322844,1782305432000,-500.0,0.00013241,2]
[426322848,1782305432000,-500.0,0.00013241,2]
[426322846,1782305432000,-500.0,0.00013241,2]
[426322850,1782305432000,-500.0,0.00013241,2]
[426322852,1782305432000,-456.01780947,0.00013241,2]
[426322854,1782305432000,-500.0,0.00013241,2]
[426322872,1782305432000,-500.0,0.00013241,2]
[426322862,1782305432000,-500.0,0.00013241,2]
[426322870,1782305432000,-500.0,0.00013241,2]
[426322865,1782305432000,-500.0,0.00013241,2]
[426322864,1782305432000,-500.0,0.00013241,2]
[426322858,1782305432000,-500.0,0.00013241,2]
[426322868,1782305432000,-500.0,0.00013241,2]
[426322860,1782305432000,-500.0,0.00013241,2]
[426322867,1782305432000,-500.0,0.00013241,2]
[426322873,1782305432000,-500.0,0.00013241,2]
[426322880,1782305432000,-250.0,0.00013241,2]
[426322882,1782305432000,-500.0,0.00013241,2]
[426322875,1782305432000,-500.0,0.00013241,2]
[426322886,1782305432000,-800.0,0.00013368,2]
[426322879,1782305432000,-500.0,0.00013241,2]
[426322877,1782305432000,-500.0,0.00013241,2]
[426322884,1782305432000,-3974.85,0.00013242,2]
[426322888,1782305432000,-166.66,0.00013417,2]
[426322896,1782305432000,-272.16529691,0.00013678,7]
[426322890,1782305432000,-550.14999895,0.00013535,2]
[426322929,1782305432000,-166.66,0.00014407,2]
[426322856,1782305432000,-500.0,0.00013241,2]
[426322925,1782305432000,-300.0,0.00014329,2]
[426322972,1782305432000,-500.0,0.00015067,2]
[426322970,1782305432000,-500.0,0.00015067,2]
[426322962,1782305432000,-500.0,0.00014948,2]
[426322964,1782305432000,-498.0,0.00014948,2]
[426322966,1782305432000,-500.0,0.00015067,2]
[426322967,1782305432000,-500.0,0.00015067,2]
[426322965,1782305432000,-800.0,0.00015039,2]
[426322968,1782305432000,-500.0,0.00015067,2]
[426322969,1782305432000,-500.0,0.00015067,2]
[426322974,1782305432000,-500.0,0.00015067,2]
[426322975,1782305432000,-522.8,0.00015073,2]
[426322973,1782305432000,-500.0,0.00015067,2]
[426322978,1782305432000,-522.8,0.00015424,2]
[426322977,1782305432000,-500.0,0.00015341,2]
[426322976,1782305432000,-168.74,0.00015228,2]
[426322980,1782305432000,-500.0,0.00015463,2]
[426322984,1782305432000,-500.0,0.00015463,2]
[426322982,1782305432000,-500.0,0.00015463,2]
[426322981,1782305432000,-500.0,0.00015463,2]
[426322979,1782305432000,-500.0,0.00015463,2]
[426322983,1782305432000,-500.0,0.00015463,2]
[426322986,1782305432000,-500.0,0.00015463,2]
[426322989,1782305432000,-500.0,0.00015499,2]
[426322985,1782305432000,-567.88,0.00015463,2]
[426322987,1782305432000,-500.0,0.00015499,2]
[426322988,1782305432000,-500.0,0.00015499,2]
[426322990,1782305432000,-500.0,0.00015499,2]
[426322963,1782305432000,-500.0,0.00014948,2]
[426322961,1782305432000,-500.0,0.00014848,2]
[426322935,1782305432000,-500.0,0.00014519,2]
[426322957,1782305432000,-500.0,0.00014848,2]
[426322924,1782305432000,-300.0,0.00014329,2]
[426322931,1782305432000,-600.0,0.00014467,2]
[426322932,1782305432000,-600.0,0.00014467,2]
[426322927,1782305432000,-522.8,0.00014372,2]
[426322936,1782305432000,-500.0,0.00014697,2]
[426322937,1782305432000,-559.27,0.00014697,2]
[426322948,1782305432000,-500.0,0.00014848,2]
[426322971,1782305432000,-500.0,0.00015067,2]
[426322947,1782305432000,-500.0,0.00014848,2]
[426322940,1782305432000,-500.0,0.00014793,2]
[426322938,1782305432000,-6963.12457533,0.00014698,2]
[426322946,1782305432000,-500.0,0.00014848,2]
[426322943,1782305432000,-500.0,0.00014847,2]
[426322942,1782305432000,-501.62260177,0.00014847,2]
[426322941,1782305432000,-500.0,0.00014847,2]
[426322945,1782305432000,-503.63672194,0.00014848,2]
[426322939,1782305432000,-522.8,0.00014723,2]
[426322959,1782305432000,-500.0,0.00014848,2]
[426322956,1782305432000,-500.0,0.00014848,2]
[426322950,1782305432000,-500.0,0.00014848,2]
[426322958,1782305432000,-500.0,0.00014848,2]
[426322954,1782305432000,-567.88,0.00014848,2]
[426322960,1782305432000,-500.0,0.00014848,2]
[426322952,1782305432000,-500.0,0.00014848,2]
[426322955,1782305432000,-500.0,0.00014848,2]
[426322951,1782305432000,-505.67688028,0.00014848,2]
[426322949,1782305432000,-500.0,0.00014848,2]
[426322944,1782305432000,-500.0,0.00014847,2]
[426322953,1782305432000,-500.0,0.00014848,2]
[426323029,1782305433000,-500.0,0.00016438,2]
[426323032,1782305433000,-263.45214906,0.00016438,2]
[426323027,1782305433000,-500.0,0.00016438,2]
[426323022,1782305433000,-300.0,0.00016,2]
[426323030,1782305433000,-500.0,0.00016438,2]
[426323023,1782305433000,-10374.2805691,0.000162,2]
[426323028,1782305433000,-500.0,0.00016438,2]
[426323024,1782305433000,-168.74,0.00016244,2]
[426323033,1782305433000,-10374.2805691,0.000165,2]
[426323025,1782305433000,-10374.2805691,0.000163,2]
[426323031,1782305433000,-500.0,0.00016438,2]
[426323026,1782305433000,-462.7,0.00016438,2]
[426323035,1782305433000,-1842.6465575,0.00016695,2]
[426323049,1782305433000,-19120.96992296,0.0001741,2]
[426323040,1782305433000,-500.0,0.00017168,2]
[426323038,1782305433000,-10374.2805691,0.000168,2]
[426323036,1782305433000,-10374.2805691,0.000167,2]
[426323039,1782305433000,-10374.2805691,0.00017,2]
[426323034,1782305433000,-19120.96992296,0.00016626,2]
[426323042,1782305433000,-10374.2805691,0.000172,2]
[426323044,1782305433000,-168.74,0.00017259,2]
[426323043,1782305433000,-250.0,0.00017225,2]
[426323037,1782305433000,-800.0,0.0001671,2]
[426323041,1782305433000,-559.27,0.00017168,2]
[426323046,1782305433000,-383.0,0.00017318,2]
[426323047,1782305433000,-1277.0,0.00017318,2]
[426323019,1782305433000,-593.8,0.00015942,2]
[426323045,1782305433000,-1273.46700638,0.00017279,2]
[426323018,1782305433000,-233685.49,0.00015938,2]
[426322998,1782305433000,-10374.2805691,0.000157,2]
[426323014,1782305433000,-500.0,0.00015938,2]
[426323050,1782305433000,-334.12282483,0.00017431,2]
[426322994,1782305433000,-10374.2805691,0.000155,2]
[426322996,1782305433000,-500.0,0.00015615,2]
[426322995,1782305433000,-505.85568272,0.00015605,2]
[426322991,1782305433000,-500.0,0.00015499,2]
[426322992,1782305433000,-500.0,0.00015499,2]
[426322993,1782305433000,-520.80431641,0.00015499,2]
[426322997,1782305433000,-2006.8548686,0.00015685,2]
[426323001,1782305433000,-500.0,0.00015889,2]
[426323003,1782305433000,-300.0,0.000159,5]
[426323007,1782305433000,-500.0,0.00015938,2]
[426323004,1782305433000,-504.20791539,0.00015938,2]
[426323006,1782305433000,-500.0,0.00015938,2]
[426323002,1782305433000,-10374.2805691,0.000159,2]
[426323009,1782305433000,-500.0,0.00015938,2]
[426323000,1782305433000,-151.0,0.00015866,2]
[426322999,1782305433000,-19120.96992299,0.00015842,2]
[426323008,1782305433000,-500.0,0.00015938,2]
[426323005,1782305433000,-500.0,0.00015938,2]
[426323011,1782305433000,-500.0,0.00015938,2]
[426323021,1782305433000,-10374.2805691,0.00016,2]
[426323013,1782305433000,-500.0,0.00015938,2]
[426323012,1782305433000,-500.0,0.00015938,2]
[426323010,1782305433000,-505.52296177,0.00015938,2]
[426323017,1782305433000,-559.27,0.00015938,2]
[426323016,1782305433000,-500.0,0.00015938,2]
[426323020,1782305433000,-191.35,0.00015969,2]
[426323015,1782305433000,-178.0,0.00015938,2]
[426323051,1782305433000,-589.43226785,0.00017431,2]
[426323108,1782305433000,-500.0,0.00018428,2]
[426323052,1782305433000,-881.75542107,0.00017431,2]
[426323094,1782305433000,-878.38332319,0.000184,2]
[426323087,1782305433000,-168.74,0.00018274,2]
[426323090,1782305433000,-500.0,0.00018399,2]
[426323083,1782305433000,-19120.96992296,0.00018195,2]
[426323085,1782305433000,-500.0,0.00018217,2]
[426323089,1782305433000,-500.0,0.00018399,2]
[426323092,1782305433000,-500.0,0.00018399,2]
[426323088,1782305433000,-800.0,0.00018382,2]
[426323084,1782305433000,-878.38332319,0.000182,2]
[426323082,1782305433000,-500.0,0.00018049,2]
[426323091,1782305433000,-614.36,0.00018399,2]
[426323106,1782305433000,-500.0,0.00018428,2]
[426323095,1782305433000,-462.7,0.0001841,2]
[426323104,1782305433000,-314.88461838,0.00018428,2]
[426323096,1782305433000,-500.0,0.00018426,2]
[426323103,1782305433000,-500.0,0.00018426,2]
[426323100,1782305433000,-500.0,0.00018426,2]
[426323097,1782305433000,-500.0,0.00018426,2]
[426323101,1782305433000,-500.0,0.00018426,2]
[426323098,1782305433000,-500.0,0.00018426,2]
[426323105,1782305433000,-500.0,0.00018428,2]
[426323099,1782305433000,-500.0,0.00018426,2]
[426323102,1782305433000,-567.88,0.00018426,2]
[426323107,1782305433000,-500.0,0.00018428,2]
[426323048,1782305433000,-1229.0,0.00017318,2]
[426323110,1782305433000,-500.0,0.00018428,2]
[426323111,1782305433000,-500.0,0.00018428,2]
[426323093,1782305433000,-500.0,0.00018399,2]
[426323086,1782305433000,-500.0,0.00018217,2]
[426323109,1782305433000,-567.88,0.00018428,2]
[426323080,1782305433000,-500.0,0.00018049,2]
[426323072,1782305433000,-500.0,0.00018049,2]
[426323056,1782305433000,-200.331946,0.00017761,2]
[426323057,1782305433000,-240.113806,0.00017761,2]
[426323054,1782305433000,-550.14999895,0.00017651,2]
[426323055,1782305433000,-593.8,0.00017713,2]
[426323053,1782305433000,-1193.0391,0.00017431,2]
[426323059,1782305433000,-258.240399,0.00017761,2]
[426323069,1782305433000,-500.0,0.00018049,2]
[426323060,1782305433000,-322.515697,0.0001785,2]
[426323058,1782305433000,-263.87648,0.00017761,2]
[426323065,1782305433000,-500.0,0.00018048,2]
[426323064,1782305433000,-500.0,0.00018048,2]
[426323063,1782305433000,-350.0,0.00018,2]
[426323061,1782305433000,-1500.0,0.0001798,2]
[426323062,1782305433000,-878.38332319,0.00018,2]
[426323066,1782305433000,-500.0,0.00018048,2]
[426323081,1782305433000,-500.0,0.00018049,2]
[426323076,1782305433000,-567.88,0.00018049,2]
[426323078,1782305433000,-500.0,0.00018049,2]
[426323079,1782305433000,-506.64029127,0.00018049,2]
[426323070,1782305433000,-500.0,0.00018049,2]
[426323074,1782305433000,-500.0,0.00018049,2]
[426323075,1782305433000,-500.0,0.00018049,2]
[426323073,1782305433000,-500.0,0.00018049,2]
[426323077,1782305433000,-500.0,0.00018049,2]
[426323067,1782305433000,-500.0,0.00018049,2]
[426323068,1782305433000,-500.0,0.00018049,2]
[426323071,1782305433000,-500.0,0.00018049,2]
[426323147,1782305434000,-500.0,0.00019399,2]
[426323149,1782305434000,-593.8,0.00019485,2]
[426323154,1782305434000,-500.0,0.00019725,2]
[426323145,1782305434000,-567.88,0.00019399,2]
[426323144,1782305434000,-500.0,0.00019399,2]
[426323138,1782305434000,-228.0,0.00019336,2]
[426323155,1782305434000,-500.0,0.00019726,2]
[426323146,1782305434000,-500.0,0.00019399,2]
[426323152,1782305434000,-500.0,0.00019725,2]
[426323148,1782305434000,-500.0,0.00019399,2]
[426323153,1782305434000,-500.0,0.00019725,2]
[426323156,1782305434000,-500.0,0.00019726,2]
[426323150,1782305434000,-1672.7364795,0.00019624,2]
[426323169,1782305434000,-500.0,0.00019726,2]
[426323163,1782305434000,-500.0,0.00019726,2]
[426323159,1782305434000,-500.0,0.00019726,2]
[426323168,1782305434000,-500.0,0.00019726,2]
[426323157,1782305434000,-500.0,0.00019726,2]
[426323164,1782305434000,-501.61007117,0.00019726,2]
[426323161,1782305434000,-500.0,0.00019726,2]
[426323162,1782305434000,-500.0,0.00019726,2]
[426323165,1782305434000,-500.0,0.00019726,2]
[426323166,1782305434000,-500.0,0.00019726,2]
[426323167,1782305434000,-500.0,0.00019726,2]
[426323160,1782305434000,-500.0,0.00019726,2]
[426323158,1782305434000,-500.0,0.00019726,2]
[426323135,1782305434000,-166.0,0.00019216,2]
[426323151,1782305434000,-730.22005529,0.00019626,2]
[426323134,1782305434000,-1000.0,0.00019178,2]
[426323131,1782305434000,-156.0,0.00019033,5]
[426323133,1782305434000,-158.0,0.00019139,2]
[426323170,1782305434000,-500.0,0.00019726,2]
[426323115,1782305434000,-1555.5,0.00018528,2]
[426323119,1782305434000,-500.0,0.00018799,2]
[426323113,1782305434000,-28701.95660991,0.00018429,2]
[426323112,1782305434000,-500.0,0.00018428,2]
[426323118,1782305434000,-500.0,0.00018799,2]
[426323114,1782305434000,-878.38332319,0.000185,2]
[426323116,1782305434000,-878.38332319,0.000187,2]
[426323117,1782305434000,-500.0,0.00018799,2]
[426323120,1782305434000,-567.88,0.00018799,2]
[426323126,1782305434000,-700.0,0.000189,6]
[426323125,1782305434000,-500.0,0.0001888,2]
[426323128,1782305434000,-500.0,0.00018978,2]
[426323122,1782305434000,-57488.07294537,0.0001881,2]
[426323121,1782305434000,-500.0,0.00018799,2]
[426323123,1782305434000,-500.0,0.0001888,2]
[426323124,1782305434000,-500.0,0.0001888,2]
[426323127,1782305434000,-190.53,0.00018905,2]
[426323129,1782305434000,-559.27,0.00018978,2]
[426323130,1782305434000,-19120.96992296,0.00018979,2]
[426323132,1782305434000,-1613.0535,0.00019076,2]
[426323137,1782305434000,-158.0,0.00019302,2]
[426323143,1782305434000,-500.0,0.00019399,2]
[426323139,1782305434000,-392.45,0.00019355,7]
[426323142,1782305434000,-500.0,0.00019399,2]
[426323141,1782305434000,-500.0,0.00019399,2]
[426323140,1782305434000,-210.84124237,0.00019373,2]
[426323136,1782305434000,-168.74,0.00019289,2]
[426323179,1782305434000,-500.0,0.00019726,2]
[426323172,1782305434000,-500.0,0.00019726,2]
[426323233,1782305434000,-764.0,0.00019726,2]
[426323216,1782305434000,-500.0,0.00019726,2]
[426323217,1782305434000,-1110.0,0.00019726,2]
[426323214,1782305434000,-1110.0,0.00019726,2]
[426323215,1782305434000,-1110.0,0.00019726,2]
[426323212,1782305434000,-427.23592974,0.00019726,2]
[426323211,1782305434000,-1110.0,0.00019726,2]
[426323218,1782305434000,-500.0,0.00019726,2]
[426323207,1782305434000,-1110.0,0.00019726,2]
[426323209,1782305434000,-1110.0,0.00019726,2]
[426323206,1782305434000,-500.0,0.00019726,2]
[426323210,1782305434000,-500.0,0.00019726,2]
[426323208,1782305434000,-500.0,0.00019726,2]
[426323221,1782305434000,-189.64130238,0.00019726,2]
[426323224,1782305434000,-500.0,0.00019726,2]
[426323227,1782305434000,-579.21579703,0.00019726,2]
[426323225,1782305434000,-500.0,0.00019726,2]
[426323222,1782305434000,-1110.0,0.00019726,2]
[426323226,1782305434000,-1110.0,0.00019726,2]
[426323219,1782305434000,-1110.0,0.00019726,2]
[426323230,1782305434000,-150.0,0.00019726,2]
[426323220,1782305434000,-500.0,0.00019726,2]
[426323229,1782305434000,-1110.0,0.00019726,2]
[426323223,1782305434000,-500.0,0.00019726,2]
[426323228,1782305434000,-349.88897832,0.00019726,2]
[426323231,1782305434000,-764.0,0.00019726,2]
[426323232,1782305434000,-150.0,0.00019726,2]
[426323177,1782305434000,-517.50702938,0.00019726,2]
[426323204,1782305434000,-500.0,0.00019726,2]
[426323203,1782305434000,-1110.0,0.00019726,2]
[426323213,1782305434000,-1110.0,0.00019726,2]
[426323195,1782305434000,-150.0,0.00019726,2]
[426323202,1782305434000,-500.0,0.00019726,2]
[426323174,1782305434000,-500.0,0.00019726,2]
[426323176,1782305434000,-500.0,0.00019726,2]
[426323175,1782305434000,-500.0,0.00019726,2]
[426323180,1782305434000,-500.0,0.00019726,2]
[426323178,1782305434000,-500.0,0.00019726,2]
[426323171,1782305434000,-502.30549322,0.00019726,2]
[426323182,1782305434000,-500.0,0.00019726,2]
[426323193,1782305434000,-500.0,0.00019726,2]
[426323192,1782305434000,-500.0,0.00019726,2]
[426323183,1782305434000,-500.0,0.00019726,2]
[426323185,1782305434000,-500.0,0.00019726,2]
[426323186,1782305434000,-500.0,0.00019726,2]
[426323184,1782305434000,-500.0,0.00019726,2]
[426323173,1782305434000,-500.0,0.00019726,2]
[426323189,1782305434000,-500.0,0.00019726,2]
[426323181,1782305434000,-500.0,0.00019726,2]
[426323200,1782305434000,-1110.0,0.00019726,2]
[426323199,1782305434000,-1110.0,0.00019726,2]
[426323201,1782305434000,-1110.0,0.00019726,2]
[426323197,1782305434000,-210.36321723,0.00019726,2]
[426323198,1782305434000,-1110.0,0.00019726,2]
[426323205,1782305434000,-1110.0,0.00019726,2]
[426323194,1782305434000,-559.80992452,0.00019726,2]
[426323187,1782305434000,-440.09875159,0.00019726,2]
[426323190,1782305434000,-500.0,0.00019726,2]
[426323191,1782305434000,-500.0,0.00019726,2]
[426323188,1782305434000,-500.0,0.00019726,2]
[426323196,1782305434000,-150.0,0.00019726,2]
[426323276,1782305435000,-2422.47,0.00019839,2]
[426323268,1782305435000,-764.0,0.00019726,2]
[426323269,1782305435000,-1110.0,0.00019726,2]
[426323266,1782305435000,-1110.0,0.00019726,2]
[426323272,1782305435000,-764.0,0.00019726,2]
[426323274,1782305435000,-179.39769902,0.00019726,2]
[426323279,1782305435000,-500.0,0.00019999,2]
[426323270,1782305435000,-764.0,0.00019726,2]
[426323273,1782305435000,-772.15902593,0.00019726,2]
[426323267,1782305435000,-764.0,0.00019726,2]
[426323277,1782305435000,-1155.58666498,0.00019999,2]
[426323271,1782305435000,-1115.91724703,0.00019726,2]
[426323275,1782305435000,-19120.96992296,0.00019763,2]
[426323283,1782305435000,-500.0,0.00019999,2]
[426323280,1782305435000,-208.61164324,0.00019999,2]
[426323290,1782305435000,-500.0,0.00019999,2]
[426323281,1782305435000,-500.0,0.00019999,2]
[426323286,1782305435000,-567.88,0.00019999,2]
[426323282,1782305435000,-500.0,0.00019999,2]
[426323288,1782305435000,-500.0,0.00019999,2]
[426323289,1782305435000,-500.0,0.00019999,2]
[426323291,1782305435000,-500.0,0.00019999,2]
[426323285,1782305435000,-567.88,0.00019999,2]
[426323284,1782305435000,-500.0,0.00019999,2]
[426323287,1782305435000,-500.0,0.00019999,2]
[426323293,1782305435000,-377.0,0.0002,2]
[426323263,1782305435000,-764.0,0.00019726,2]
[426323278,1782305435000,-500.0,0.00019999,2]
[426323262,1782305435000,-764.0,0.00019726,2]
[426323301,1782305435000,-214.0,0.0002,2]
[426323265,1782305435000,-764.0,0.00019726,2]
[426323238,1782305435000,-764.0,0.00019726,2]
[426323240,1782305435000,-764.0,0.00019726,2]
[426323241,1782305435000,-764.0,0.00019726,2]
[426323242,1782305435000,-764.0,0.00019726,2]
[426323239,1782305435000,-764.0,0.00019726,2]
[426323236,1782305435000,-1110.0,0.00019726,2]
[426323234,1782305435000,-152.82407456,0.00019726,2]
[426323235,1782305435000,-764.0,0.00019726,2]
[426323237,1782305435000,-764.0,0.00019726,2]
[426323243,1782305435000,-1110.0,0.00019726,2]
[426323244,1782305435000,-500.0,0.00019726,2]
[426323253,1782305435000,-764.0,0.00019726,2]
[426323246,1782305435000,-500.0,0.00019726,2]
[426323257,1782305435000,-764.0,0.00019726,2]
[426323252,1782305435000,-500.0,0.00019726,2]
[426323248,1782305435000,-500.0,0.00019726,2]
[426323251,1782305435000,-764.0,0.00019726,2]
[426323245,1782305435000,-764.0,0.00019726,2]
[426323250,1782305435000,-500.0,0.00019726,2]
[426323249,1782305435000,-764.0,0.00019726,2]
[426323254,1782305435000,-764.0,0.00019726,2]
[426323256,1782305435000,-500.0,0.00019726,2]
[426323255,1782305435000,-500.0,0.00019726,2]
[426323260,1782305435000,-1110.0,0.00019726,2]
[426323264,1782305435000,-1110.0,0.00019726,2]
[426323261,1782305435000,-519.26895729,0.00019726,2]
[426323258,1782305435000,-500.0,0.00019726,2]
[426323259,1782305435000,-500.0,0.00019726,2]
[426323247,1782305435000,-764.0,0.00019726,2]